Cogmind - Beta 17 @@@ ROGUE MODE // 2026.07.09 @ 11:56:24 Player: pinbox Result: Destroyed by D-53 Grenadier with Mini Grenade Launcher Performance ------------- Evolutions (1) 500 Regions Visited (3) 600 Robots Destroyed (27) 135 Value Destroyed (545) 545 Prototype IDs (3) 60 Alien Tech Used (0) 0 Bonus (0) 0 TOTAL SCORE: 1840 Bonus ------- None Cogmind --------- Core Integrity 0/400 Matter 295/300 Energy 97/100 System Corruption 7% Temperature Cool (0) Movement Rolling (130) Ox2 Location -9/Mines Parts ------- > --- POWER (1) -------- (None) > --- PROPULSION (2) --- Compact Wheel > --- UTILITY (4) ------ High-capacity Storage Unit Terrain Scan Processor > --- WEAPON (2) ------- (None) > --- INVENTORY (20) --- Cooled Ion Engine Light Treads Light Treads Improved Heat Sink Improved Heat Sink Large Matter Pod (150) Sensor Array ECM Suite Light Armor Plating Light Armor Plating Insulated Plating Insulated Plating Heavy EM Pulse Gun Heavy EM Pulse Gun Advanced Beam Cannon Advanced Beam Cannon Datajack Mining Claw Peak State ------------ > --- POWER ------------ Cooled Ion Engine > --- PROPULSION ------- Light Treads Light Treads > --- UTILITY ---------- High-capacity Storage Unit Terrain Scanner Terrain Scan Processor Light Armor Plating > --- WEAPON ----------- Improved EM Shotgun Improved EM Shotgun > --- INVENTORY -------- Cooled Ion Engine Light Treads Light Treads Compact Wheel Seismic Detector ECM Suite Heavy EM Pulse Gun Heavy EM Pulse Gun Medium Laser Advanced Beam Cannon Advanced Beam Cannon Shotgun Datajack Mining Claw [Rating: 18] Favorites ----------- Power Cooled Ion Engine Engine Cooled Ion Engine Propulsion Light Treads Treads Light Treads Wheel Compact Wheel Utility High-capacity Storage Unit Device Seismic Detector Storage High-capacity Storage Unit Processor Terrain Scan Processor Protection Light Armor Plating Weapon Improved EM Shotgun Energy Gun Improved EM Shotgun Energy Cannon Advanced Beam Cannon Ballistic Gun Light Assault Rifle Build | -11 -10 -9 -9 ------- Run | Yrd Mat Mat Min Slots Evolved 2 | . . 2 . Power . | . . . . Propulsion . | . . . . Utility 2 | . . 2 . Weapon . | . . . . Parts Attached 19 | 8 1 9 1 Power 2 | 1 . 1 . Engine 2 | 1 . 1 . Core . | . . . . Reactor . | . . . . Propulsion 3 | 2 . . 1 Treads 2 | 2 . . . Leg . | . . . . Wheel 1 | . . . 1 Hover . | . . . . Flight . | . . . . Utility 8 | 3 1 4 . Device 3 | 2 . 1 . Storage 2 | 1 1 . . Processor 2 | . . 2 . Hackware . | . . . . Protection 1 | . . 1 . Artifact . | . . . . Weapon 6 | 2 . 4 . Energy Gun 3 | 1 . 2 . Energy Cannon 1 | . . 1 . Ballistic Gun 2 | 1 . 1 . Ballistic Cannon . | . . . . Launcher . | . . . . Special Weapon . | . . . . Impact Weapon . | . . . . Slashing Weapon . | . . . . Piercing Weapon . | . . . . Special Melee Weapon . | . . . . Unidentified Prototypes 3 | . . 3 . Parts Lost 8 | . . 1 7 Power 1 | . . . 1 Propulsion 2 | . . . 2 Utility 2 | . . . 2 Weapon 3 | . . 1 2 Highest Loss Streak 7 | . . 1 7 To Critical Strikes . | . . . . Average Backups 9 | . 1 11 19 Power . | . . . 1 Propulsion 1 | . 1 2 3 Utility 2 | . . 2 9 Weapon 3 | . . 5 5 Tool/Special . | . . . . Unused Backups 18 | . . 2 16 Power 1 | . . . 1 Propulsion 3 | . . 1 2 Utility 9 | . . 1 8 Weapon 4 | . . . 4 Tool/Special 1 | . . . 1 Average Slot Usage (%) 90 | . 100 89 84 Engine 11 | . 14 10 9 Treads 22 | . 28 22 18 Device 11 | . 14 11 11 Storage 11 | . 14 11 11 Processor 7 | . . 8 20 Protection 2 | . . 2 . Energy Gun 16 | . 14 17 5 Ballistic Gun 6 | . 14 4 7 Peak Build Rating 18 | 7 7 18 18 Average Rating 12 | 5 6 14 14 On Entrance 8 | . 7 7 18 Avg Prop Armor Cover (%) . | . . . . Naked Turns . | . . . . Heaviest Build 58 | 12 47 58 55 Greatest Support 40 | 40 40 40 40 Greatest Overweight (x) 2 | . 1 1 2 Average Overweight (x) . | . . 1 1 Largest Inventory Capacity 20 | 8 20 20 20 Average Capacity 17 | 7 9 20 20 Most Carried 19 | 2 2 19 19 Average Carried 9 | . 1 12 18 Final Capacity 20 | 8 20 20 20 Final Carried 19 | 1 1 19 18 Class Distribution -------------------- 100% | Mutant Dominant Class ---------------- Mutant | -10/Materials Mutant | -9/Materials Mutant | -9/Mines Resources | -11 -10 -9 -9 ----------- Run | Yrd Mat Mat Min Matter Collected 578 | 278 34 254 12 Remotely 78 | 78 . . . Salvage Created 895 | 97 137 648 13 Parts 70 | 10 6 54 . Haulers Intercepted 3 | . . 3 . Recyclers Shooed 1 | 1 . . . Parts Field Recycled . | . . . . Retrieved Matter . | . . . . Parts Self-Destructed . | . . . . Prevented . | . . . . Parts Restored . | . . . . Kills | -11 -10 -9 -9 ------- Run | Yrd Mat Mat Min Combat Hostiles Destroyed 16 | . 3 12 1 Guns 16 | . 3 12 1 Classes Destroyed 10 | 2 2 5 1 Worker 1 | . . 1 . Builder 1 | . . 1 . Tunneler 2 | 2 . . . Hauler 3 | . . 3 . Recycler 1 | 1 . . . Watcher 4 | . 1 3 . Swarmer 6 | . . 6 . Grunt 6 | . 3 3 . Sentry 3 | . . 3 . Assembled 1 | . . . 1 Best Kill Streak 3 | 3 2 3 1 Combat Bots Only 3 | . 2 3 1 Max Kills in Single Turn 2 | 1 1 2 1 Gunslinging 1 | . . 1 . Exploded . | . . . . Melee . | . . . . Uniques/NPCs Destroyed . | . . . . Combat | -11 -10 -9 -9 -------- Run | Yrd Mat Mat Min Hostile Shots Fired 69 | . 16 28 25 Missed 17 | . 6 8 3 Hits 52 | . 10 20 22 Melee 5 | . . . 5 Projectile 47 | . 10 20 17 AOE 18 | . . . 18 Damage Taken 1419 | . 111 394 914 Core 452 | . 10 98 344 Absorbed by Shields . | . . . . Core Remaining (%) 98 | 100 96 . . Volleys Fired 59 | 8 17 32 2 Largest 2 | 2 2 2 2 Hottest 90 | 70 70 90 68 Shots Fired 116 | 16 33 63 4 Gun 115 | 16 33 62 4 Cannon 1 | . . 1 . Launcher . | . . . . Special . | . . . . Kinetic 34 | 8 17 7 2 Thermal 28 | 8 16 4 . Explosive . | . . . . Electromagnetic 54 | . . 52 2 Robot Hit Streak 15 | 8 5 15 2 Robot Miss Streak 5 | 1 2 5 1 Penetration Max . | . . . . Secondary Targets 1 | . . 1 . Max Gunslinging Chain 1 | . . 1 . Shots Hit Robots 75 | 12 17 42 4 Core Hits 47 | 5 8 31 3 Critical Kills . | . . . . Critical Parts Destroyed . | . . . . Critical Strikes 2 | . 2 . . Burn 2 | . 2 . . Melee Attacks . | . . . . Impact . | . . . . Slashing . | . . . . Piercing . | . . . . Sneak Attacks . | . . . . Combat Hostiles . | . . . . Follow-up Attacks . | . . . . Damage Inflicted 1283 | 132 171 921 59 Guns 1041 | 132 171 684 54 Cannons . | . . . . Explosions 201 | . . 201 . Melee . | . . . . Ramming 41 | . . 36 5 Kinetic 198 | 33 60 71 34 Thermal 375 | 99 111 165 . Explosive 61 | . . 61 . Electromagnetic 608 | . . 588 20 Impact . | . . . . Slashing . | . . . . Piercing . | . . . . Highest Corruption 7 | . . . 7 Average Corruption 7 | . . . 7 Corruption Purged . | . . . . Corruption Blocked . | . . . . Overload Shots . | . . . . Overflow Damage 25 | . . 25 . Projectiles . | . . . . Explosions 23 | . . 23 . Melee 2 | . . 2 . Knockbacks . | . . . . Impact . | . . . . Kinetic . | . . . . Secondary . | . . . . Self-Inflicted Damage 192 | . . 192 . Shots 4 | . . 4 . Rammed 7 | . 1 5 1 Targets Rammed 7 | . 1 5 1 Kicked . | . . . . Crushed . | . . . . Highest Temperature 140 | 140 114 75 28 Average Temperature 37 | 73 43 25 19 Received Heat Transfer 141 | . 60 21 60 Siege Activations . | . . . . Martial Activations . | . . . . Shielding Activations . | . . . . Robots Disrupted . | . . . . Combat Hostiles . | . . . . Robots Corrupted . | . . . . Combat Hostiles . | . . . . Parts Fried 2 | . . 2 . Impact Corruptions 1 | . . 1 . Robots Melted . | . . . . Combat Hostiles . | . . . . Parts Melted 1 | . 1 . . Heat Transferred 1001 | 296 481 224 . Parts Sabotaged . | . . . . Parts Stolen . | . . . . Parts Stripped . | . . . . Power Chain Reactions 3 | . . 3 . Alert | -11 -10 -9 -9 ------- Run | Yrd Mat Mat Min Maximum Alert Level 1 | . . 1 . Low Security (%) 96 | 100 100 95 100 Level 1 3 | . . 4 . Level 2 . | . . . . Level 3 . | . . . . Level 4 . | . . . . Level 5 . | . . . . High Security . | . . . . Max Security . | . . . . Peak Influence 245 | 10 50 245 88 Initial 88 | . . 8 88 Average 66 | 1 16 85 63 Influence Increases 619 | 15 77 527 . Destroy 0b10 Robot/C 300 | . 60 240 . Destroy 0b10 Robot/NC 60 | 15 5 40 . Destroy Leader 64 | . 12 52 . Successful Hack 21 | . . 21 . Disable Machine 75 | . . 75 . Destroy Structure 54 | . . 54 . Lose Combat Pursuer 45 | . . 45 . Influence Decreases 619 | 15 57 320 227 Entered New Map 151 | . . 12 139 Time Decay 390 | 15 57 298 20 Lost Part 78 | . . 10 68 Squads Dispatched 1 | . 1 . . Investigation . | . . . . Extermination . | . . . . Reinforcement 1 | . 1 . . Assault . | . . . . Garrison . | . . . . Intercept . | . . . . Searches Triggered . | . . . . Construction Impeded . | . . . . Haulers Reinforced . | . . . . Active Scanning Responses . | . . . . Cargo Convoy Interrupts . | . . . . Stealth | -11 -10 -9 -9 --------- Run | Yrd Mat Mat Min Distress Signals 3 | . . 3 . Communications Jammed . | . . . . Distress Signals . | . . . . Times Spotted 36 | . 8 19 9 Peak Tracking Total 19 | . 3 4 19 Tactical Retreats 3 | . . 3 . Traps | -11 -10 -9 -9 ------- Run | Yrd Mat Mat Min Traps Triggered . | . . . . Indirectly . | . . . . Trap Hack Attempts . | . . . . Triggered . | . . . . Disarmed . | . . . . Reprogrammed . | . . . . Reused . | . . . . Traps Extracted . | . . . . Installed . | . . . . Triggered . | . . . . Machines | -11 -10 -9 -9 ---------- Run | Yrd Mat Mat Min Machines Disabled 5 | . . 5 . Max in Single Turn 1 | . . 1 . Machines Repaired . | . . . . Machines Dismantled . | . . . . Machines Sabotaged . | . . . . Overloaded Fab Kills . | . . . . Hacking | -11 -10 -9 -9 --------- Run | Yrd Mat Mat Min Machines Accessed 7 | . 1 6 . Terminals 5 | . 1 4 . Fabricators . | . . . . Repair Stations . | . . . . Recycling Units 2 | . . 2 . Scanalyzers . | . . . . Garrison Access . | . . . . Total Hacks 25 | . 3 22 . Successful 9 | . . 9 . Failed 16 | . 3 13 . Catastrophic 3 | . . 3 . Database Lockouts . | . . . . Manual 18 | . 3 15 . Terminals 20 | . 3 17 . Fabricators . | . . . . Repair Stations . | . . . . Recycling Units 5 | . . 5 . Scanalyzers . | . . . . Garrison Access . | . . . . Terminal Hacks 5 | . . 5 . Branch Access Points 1 | . . 1 . Terminal Index 1 | . . 1 . Zone Layout 3 | . . 3 . Fabricator Hacks . | . . . . Repair Station Hacks . | . . . . Recycling Unit Hacks 2 | . . 2 . Retrieve Components 2 | . . 2 . Scanalyzer . | . . . . Garrison Access Hacks . | . . . . Unauthorized Hacks 2 | . . 2 . Terminals 2 | . . 2 . Botnet 2 | . . 2 . Fabricators . | . . . . Repair Stations . | . . . . Recycling Units . | . . . . Scanalyzers . | . . . . Garrison Access . | . . . . Data Cores Recovered . | . . . . Used . | . . . . Hacking Detections 6 | . 1 5 . Full Trace Events . | . . . . Feedback Events . | . . . . Feedback Blocked . | . . . . Robot Schematics Acquired . | . . . . Robots Built . | . . . . Authchips . | . . . . Time . | . . . . Total Robot Build Rating . | . . . . Part Schematics Acquired . | . . . . Parts Built . | . . . . Authchips . | . . . . Time . | . . . . Total Part Build Rating . | . . . . Part Studies Acquired . | . . . . Parts Repaired . | . . . . Time . | . . . . Parts Recycled . | . . . . Recycled Matter . | . . . . Retrieved Matter . | . . . . Retrieved Components . | . . . . Parts Scanalyzed . | . . . . Part Schematics Acquired . | . . . . Parts Damaged . | . . . . Bothacking | -11 -10 -9 -9 ------------ Run | Yrd Mat Mat Min Used RIF Installer . | . . . . Robots Hacked . | . . . . Non-combat . | . . . . Combat . | . . . . Robot Hacks Applied . | . . . . Relay Couplers Released . | . . . . Fabnet Peak Effective % . | . . . . Robots Rewired . | . . . . Allies Hacked . | . . . . Hacks Repelled . | . . . . Allies | -11 -10 -9 -9 -------- Run | Yrd Mat Mat Min Total Allies . | . . . . Largest Group . | . . . . Highest-Rated Group . | . . . . Highest-Rated Ally . | . . . . Total Orders . | . . . . Ally Attacks . | . . . . Total Damage . | . . . . Kills . | . . . . Allies Corrupted . | . . . . Allies Melted . | . . . . Intel | -11 -10 -9 -9 ------- Run | Yrd Mat Mat Min Active Infowar (turns) 1294 | 18 230 1000 46 Terrain 504 | . . 458 46 Seismic 790 | 18 230 542 . Robot Analysis Total . | . . . . Derelict Logs Recovered . | . . . . Drone Launches . | . . . . Drone Recoveries . | . . . . Exploration | -11 -10 -9 -9 ------------- Run | Yrd Mat Mat Min Turns Passed 1392 | 114 230 1001 47 Spaces Moved 469 | 48 84 320 17 Core 3 | 3 . . . Treads 462 | 45 84 320 13 Legs . | . . . . Wheels 4 | . . . 4 Hover . | . . . . Flight . | . . . . Fastest Speed 50 | 50 160 240 130 Average Speed 218 | 153 175 240 223 Slowest Speed 320 | 160 240 240 320 Overloaded Moves . | . . . . Propulsion Burnouts . | . . . . Robots Hopped . | . . . . Potential Cave-ins . | . . . . Cave-ins Triggered 1 | . . . 1 Exploration Rate (%) 16 | 3 19 35 10 Regions Visited 3 Branch Regions 1 Pre-discovered Areas . | . . . . Known Exits Taken 1 | . . 1 . Unknown Exits Taken 2 | 1 1 . . Scrap Searched . | . . . . Spaces Dug . | . . . . Terrain Destroyed 52 | . . 52 . Melee . | . . . . Projectile . | . . . . AOE 52 | . . 52 . Terrain Rammed . | . . . . Walls Destroyed . | . . . . Machines Disabled . | . . . . Actions | -11 -10 -9 -9 --------- Run | Yrd Mat Mat Min Total 718 | 71 138 488 21 Wait 125 | 5 34 86 . Move 466 | 47 83 319 17 Hop . | . . . . Pick Up 22 | 1 . 21 . Fast Attach 15 | 8 1 6 . Attach 6 | . . 5 1 Detach 10 | 1 1 8 . Swap . | . . . . Drop 8 | 1 1 6 . Fire 59 | 8 17 32 2 Melee . | . . . . Ram . | . . . . Kick . | . . . . Crush 7 | . 1 5 1 Escape Stasis . | . . . . Rewire . | . . . . Trap . | . . . . Miscellaneous . | . . . . Route ------- -11/Scrapyard -10/Materials -9/Materials (discovered 3 exits: *Mat / *Min x2) -9/Mines History --------- Turn | Location | Event 35 | -11/Scrapyard | Discovered new exit (range 16) 115 | -11/Scrapyard | Entered Materials 282 | -10/Materials | Discovered new exit (range 6) 329 | -10/Materials | Build established: Mutant 345 | -10/Materials | Entered another Materials area 345 | -9/Materials | Evolved 2 slots: Utility x2 911 | -9/Materials | Discovered new exit (range 16) 1016 | -9/Materials | Identified exit to Materials 1036 | -9/Materials | Identified exit to Mines 1346 | -9/Materials | Entered Mines 1347 | -9/Mines | Assembled infested the area 1382 | -9/Mines | Core integrity fell below 50% 1387 | -9/Mines | Crushed by falling debris 1390 | -9/Mines | Core integrity fell below 20% 1393 | -9/Mines | Destroyed by D-53 Grenadier with Mini Grenade Launcher Last Messages --------------- 01374_ Shotgun destroyed. 01374_ HV Slug penetrates Wall. 01375_ as-81940 destroyed. 01375_ as-27902 destroyed. 01377_ The unstable cave ceiling collapses. 01380_ Lgt. Treads destroyed. 01382_ The unstable cave ceiling collapses. 01386_ Cld. Ion Engine destroyed. 01387_ The unstable cave ceiling collapses. 01387_ Crushed by falling debris. 01387_ Lgt. Treads destroyed. 01387_ System corrupted by crushing effect (+5). 01387_ Signal Interpreter destroyed. 01387_ System corrupted by crushing effect (+2). 01389_ The unstable cave ceiling collapses. 01390_ U-05 Engineer lays Concrete. 01392_ Terrain Scanner destroyed. 01392_ U-05 Engineer lays Concrete. 01392_ T-07 Excavator is excavating. 01393_ U-05 Engineer lays Concrete. Map ----- +----------------------------------------------------+ | ???????????????????????????????????????????? | | ???????????????????????????????????????????? | | ???????????????????????????????????????????? | | ???????????????????????????????????????????? | | ???????????????????????????????????????????? | | ???????????????????????????????????????????? | | ?????????????????????????????#?###?????????? | | ???????????????????????????? ## #?????????? | | ?????????????????????? ????? ?????????? | | ????????????????????#??????? ??????????? | | ????????????????????##?????? ??????????? | | ???????????????????????#??#? ???????????? | | ??????????????????##???#???# " ?? ?????????? | | ???????????????????#??#??## %"?? ##???????? | | ?????????????????#?#?????# ???????#?????? | | ????????????????##??????## #?#???#???????? | | ???????????????#???#?#??# u ###??#?#??????? | | ?????????????????####???# d ##???#??#????? | | ???????????? ????#??##?## d ##???#??????? | | ???????????????#???##### ###?#???????? | | ???????###????#?#?### ##??????#???? | | ???????# ??#??### #?##?##??????? | | ????????#t ##?# #??#?????????? | | ?????????# # ##?##?#???#??? | | ??????????# #####?#??#??? | | ???????????# @ a % ? | | ???????????## ? | | ????????????# #######"#???? | | ????????????# ###???#??#????? | | ???????????## # ##????????????? | | ????????????## ## #########???#??#???#??? | | ?????????????###########????#?#?#??????????? | | ???????????#?????????###???#?#????#??#?????? | | ??????????#?????#??##???????#???#??#???????? | | ????????????????#?#??#???#?????????????????? | | | | | | | | | | | | | | | | | | | | | | | | | | | | | | | +----------------------------------------------------+ Best States ------------- Heat Dissipation 28 Energy Generation 14 Energy Capacity 280 Matter Stores 300 Matter Capacity 300 Sight Range 16 Terrain Scan Range 14 Terrain Scan Density 85 Armor Coverage 150 Evasion (%) 40 Recoil Reduction 2 Item Schematics ----------------- None Robot Schematics ------------------ None Fabricated ------------ Nothing Repaired ---------- Nothing Studied --------- None Alien Tech Used ----------------- None Achievements -------------- None Challenges ------------ None Game ------ Seed ModifiedFactoryChargecaster Manual? 0 Play Time 00:13:21 Cumulative 36.6 hours Start 2026.07.09 @ 11:44:14 End 2026.07.09 @ 11:56:24 Sessions 1 Manual Loads 0 Difficulty Rogue Special Mode None Game No. 41 Rogue 41 Adventurer 0 Explorer 0 Win Type - Total 1 Types 1/0/0/0/0/0/0/0/0/0 Lore% 36 Gallery% 33 Achievement% 30 Wizard Run 0 Options --------- Layout 1 ASCII 0 Keyboard 1 Movement Numpad Keybinds 1 Fullscreen 2 Font 24/Smallcaps Map View 50x40 Zoom Use 0% Tactical HUD 1 Map Filters NONE Filters NONE Steam 1 RUN: e2628219-87ef-4d19-8083-b7eb41b93ae3